bitfinex/quotes_SOLUSD_20260203
["timestamp","ask_amount","ask_price","bid_price","bid_amount"]
[1770142665217,28.14,98.755,98.68,0.1]
[1770142665218,0.4720547,98.78,98.731,0.46029333]
[1770142665398,7.50580964,98.74,98.681,0.46029333]
[1770142665714,7.50580964,98.74,98.684,5.36086188]
[1770142665916,7.50580964,98.77,98.721,0.46029333]
[1770142666712,28.14,98.781,98.741,0.46029333]
[1770142666908,0.4720547,98.819,98.771,0.46029333]
[1770142667308,0.4720547,98.819,98.72,7.50580964]
[1770142667309,0.4720547,98.799,98.734,0.46029333]
[1770142667510,0.4720547,98.799,98.741,0.10143787]
[1770142667708,4.27527085,98.817,98.741,0.10143787]
[1770142667709,7.97786434,98.79,98.741,0.10143787]
[1770142667996,0.4720547,98.789,98.73,7.50580964]
[1770142668204,0.4720547,98.789,98.74,7.50580964]
[1770142668406,0.4720547,98.789,98.73,7.50580964]
[1770142668822,0.4720547,98.789,98.731,5.36086188]
[1770142669416,0.4720547,98.789,98.74,7.50580964]
[1770142669800,0.48014666,98.779,98.727,0.03970667]
[1770142670218,0.48014666,98.779,98.708,0.03970667]
[1770142670401,0.48014666,98.759,98.711,0.03970667]
[1770142670706,0.48014666,98.759,98.7,7.50580964]
[1770142670707,0.48014666,98.749,98.702,0.03970667]
[1770142671311,0.48014666,98.769,98.702,0.03970667]
[1770142671517,0.48014666,98.759,98.702,0.03970667]
[1770142671923,7.50580964,98.77,98.72,7.50580964]
[1770142672106,0.48014666,98.776,98.721,0.03970667]
[1770142672307,0.48014666,98.776,98.722,0.03970667]
[1770142672518,0.48014666,98.776,98.731,0.03970667]
[1770142672915,28.14,98.804,98.718,0.03970667]
[1770142672916,0.48014666,98.769,98.718,0.03970667]
[1770142673323,0.48014666,98.759,98.706,0.03970667]
[1770142673521,7.50580964,98.75,98.706,0.03970667]
[1770142674103,7.50580964,98.75,98.65,4.27527085]
[1770142674104,7.50580964,98.74,98.694,0.482623]
[1770142674298,7.50580964,98.74,98.695,5.36086188]
[1770142674617,7.50580964,98.75,98.698,0.482623]
[1770142674819,7.50580964,98.75,98.688,5.36086188]
[1770142674820,35.64580964,98.76,98.701,0.482623]
[1770142675120,7.50580964,98.77,98.714,5.36086188]
[1770142675306,7.50580964,98.76,98.7,7.50580964]
[1770142675503,7.50580964,98.74,98.692,5.36086188]
[1770142675720,7.50580964,98.73,98.691,0.482623]
[1770142676609,28.14,98.757,98.691,0.482623]
[1770142676811,7.50580964,98.73,98.691,0.482623]
[1770142677212,28.14,98.757,98.691,0.482623]
[1770142677530,7.50580964,98.73,98.691,0.482623]
[1770142677732,0.47121834,98.729,98.691,0.482623]
[1770142678525,7.97702798,98.72,98.682,11.6940343]
[1770142678830,0.47121834,98.719,98.683,0.482623]
[1770142679514,7.50580964,98.71,98.68,0.1]
[1770142679823,0.47121834,98.729,98.681,5.36086188]
[1770142680405,0.47121834,98.744,98.69,7.50580964]
[1770142680615,7.50580964,98.75,98.681,5.36086188]
[1770142680825,0.47121834,98.779,98.73,7.50580964]
[1770142681124,0.47121834,98.779,98.718,5.36086188]
[1770142681317,0.47121834,98.779,98.654,53.50720408]
[1770142681318,0.47121834,98.739,98.67,7.50580964]
[1770142681525,7.50580964,98.73,98.685,0.482623]
[1770142681713,0.47121834,98.739,98.696,5.36086188]
[1770142682031,0.47121834,98.789,98.731,5.36086188]
[1770142682201,0.47121834,98.792,98.741,0.482623]
[1770142682420,0.47121834,98.809,98.76,7.98843264]
[1770142682722,0.47121834,98.809,98.77,7.50580964]
[1770142682926,7.50580964,98.88,98.761,5.36086188]
[1770142682927,0.47121834,98.858,98.801,0.482623]
[1770142683227,0.47121834,98.858,98.811,0.482623]
[1770142683411,0.47121834,98.858,98.821,5.36086188]
[1770142683610,6.3419703,98.877,98.821,5.36086188]
[1770142683611,6.3419703,98.877,98.841,0.482623]
[1770142683811,0.5,98.948,98.87,7.50580964]
[1770142684015,0.2,98.96,98.8,7.50580964]
[1770142684016,0.2,98.96,98.92,7.50580964]
[1770142684226,0.5,98.959,98.91,7.50580964]
[1770142684426,0.5,98.959,98.82,10.3148504]
[1770142684427,0.5,98.959,98.864,4.27527085]
[1770142684731,0.5,98.959,98.91,7.50580964]
[1770142684905,0.5,98.949,98.9,7.50580964]
[1770142685106,0.5,98.949,98.92,7.50580964]
[1770142685627,0.5,98.949,98.866,50.19094288]
[1770142685628,7.50580964,98.94,98.874,10.11383715]
[1770142685819,0.2,98.96,98.864,50.72224612]
[1770142685820,0.5,98.939,98.864,50.72224612]
[1770142686018,0.5,98.953,98.91,7.50580964]
[1770142686218,7.50580964,98.93,98.87,7.50580964]
[1770142686428,0.5,98.919,98.86,7.50580964]
[1770142686607,0.5,98.889,98.781,50.58235564]
[1770142686807,0.5,98.889,98.83,7.50580964]
[1770142687025,7.50580964,98.89,98.831,5.36086188]
[1770142687231,0.5,98.909,98.86,7.50580964]
[1770142687437,0.5,98.899,98.84,12.86667152]
[1770142687611,0.5,98.944,98.861,10.11521226]
[1770142687805,0.5,98.944,98.91,7.50580964]
[1770142688023,0.5,98.944,98.88,5.36086188]
[1770142688234,0.5,98.919,98.87,7.50580964]
[1770142688529,0.5,98.933,98.9,7.50580964]
[1770142688728,0.5,98.933,98.88,5.36086188]
[1770142688729,0.5,98.939,98.88,5.36086188]
[1770142688913,0.5,98.939,98.87,7.50580964]
[1770142689108,0.5,98.929,98.88,7.50580964]
[1770142689313,0.5,98.929,98.89,7.50580964]
[1770142689512,0.5,98.929,98.87,12.86667152]
[1770142689728,0.5,98.919,98.87,7.50580964]
[1770142689933,0.5,98.919,98.805,50.42826338]
[1770142689934,0.5,98.944,98.9,7.50580964]
[1770142690229,0.2,98.97,98.93,7.50580964]
[1770142690430,0.5,99.016,98.96,7.50580964]
[1770142690611,7.70580964,99.04,98.934,4.27527085]
[1770142690612,0.5,98.999,98.934,4.27527085]
[1770142690811,0.5,98.999,98.96,7.50580964]
[1770142691045,0.5,98.999,98.94,7.50580964]
[1770142691214,0.5,98.979,98.93,7.50580964]
[1770142691508,0.5,98.979,98.94,7.50580964]
[1770142691708,0.2,99.0,98.92,5.36086188]
[1770142691709,0.5,98.969,98.92,7.50580964]
[1770142692125,0.5,98.996,98.96,7.50580964]
[1770142692332,0.5,98.999,98.93,5.36086188]
[1770142692628,0.5,98.989,98.95,7.50580964]
[1770142692834,0.5,98.999,98.94,7.50580964]
[1770142693034,0.5,98.979,98.93,7.50580964]
[1770142693437,0.5,98.979,98.94,7.50580964]
[1770142693621,0.5,98.979,98.93,7.50580964]
[1770142693826,0.5,98.979,98.94,7.50580964]
[1770142694142,0.5,98.959,98.91,7.50580964]
[1770142694319,0.5,98.959,98.9,7.50580964]
[1770142694524,0.5,98.959,98.91,7.50580964]
[1770142695225,0.5,98.959,98.9,7.50580964]
[1770142695427,0.5,98.959,98.91,7.50580964]
[1770142695625,0.5,98.959,98.861,32.39527085]
[1770142695626,0.5,98.949,98.9,7.50580964]
[1770142695851,0.5,98.949,98.88,5.36086188]
[1770142696155,0.5,98.949,98.92,7.50580964]
[1770142696353,0.5,98.949,98.91,7.50580964]
[1770142696567,0.5,98.949,98.9,7.50580964]
[1770142696743,28.1,98.989,98.88,5.36086188]
[1770142696744,0.5,98.939,98.88,7.50580964]
[1770142697064,28.1,98.989,98.88,7.50580964]
[1770142697065,0.5,98.959,98.92,7.50580964]
[1770142697533,7.50580964,98.95,98.9,7.50580964]
[1770142697722,0.5,98.949,98.89,7.50580964]
[1770142697927,0.5,98.949,98.9,7.50580964]
[1770142698333,0.5,98.949,98.863,10.11494169]
[1770142698543,0.5,98.949,98.831,50.87205503]
[1770142698544,4.27527085,98.947,98.799,0.5]
[1770142698859,35.36818278,98.959,98.811,0.5]
[1770142698860,5.36086188,98.937,98.811,0.5]
[1770142699057,4.27527085,98.894,98.841,0.5]
[1770142699226,7.50580964,98.9,98.841,0.5]
[1770142699547,28.1,98.918,98.8,7.50580964]
[1770142699548,28.1,98.918,98.87,7.50580964]
[1770142699847,28.1,98.918,98.881,0.5]
[1770142700233,28.1,98.918,98.89,7.50580964]
[1770142700435,28.1,98.918,98.9,7.50580964]
[1770142700636,7.50580964,98.91,98.866,0.5]
[1770142700839,7.50580964,98.9,98.85,0.5]
[1770142701052,7.50580964,98.89,98.837,0.5]
[1770142701236,7.50580964,98.88,98.831,0.5]
[1770142701561,7.50580964,98.89,98.831,0.5]
[1770142701732,7.50580964,98.88,98.831,0.5]
[1770142701931,28.1,98.903,98.779,4.27527085]
[1770142702130,4.27527085,98.854,98.78,0.5]
[1770142702327,4.27527085,98.854,98.8,7.50580964]
[1770142702547,65.13072225,98.879,98.791,0.5]
[1770142702548,4.27527085,98.857,98.791,0.5]
[1770142702745,4.27527085,98.857,98.8,7.50580964]
[1770142702939,7.50580964,98.84,98.791,0.5]
[1770142703140,4.27527085,98.874,98.791,0.5]
[1770142703433,4.27527085,98.874,98.727,50.96151344]
[1770142703434,7.50580964,98.82,98.77,8.00580964]
[1770142703642,7.50580964,98.82,98.771,0.5]
[1770142703855,28.1,98.834,98.771,0.5]
[1770142704033,7.50580964,98.82,98.771,0.5]
[1770142704229,4.27527085,98.873,98.78,7.50580964]
[1770142704449,7.50580964,98.84,98.79,7.50580964]
[1770142704640,7.50580964,98.85,98.8,7.50580964]
[1770142704966,7.50580964,98.83,98.78,8.00580964]
[1770142705243,7.50580964,98.81,98.765,0.5]
[1770142705459,7.50580964,98.82,98.77,7.50580964]
[1770142705949,28.1,98.83,98.79,7.50580964]
[1770142706251,65.13072225,98.877,98.81,7.50580964]
[1770142706252,4.27527085,98.857,98.81,7.50580964]
[1770142706432,4.27527085,98.857,98.81,7.50533402]
[1770142707835,7.50533402,98.84,98.791,0.5]
[1770142708064,7.50533402,98.84,98.742,5.36086188]
[1770142708065,7.50533402,98.85,98.8,8.00533402]
[1770142708351,4.27527085,98.858,98.791,0.5]
[1770142708352,7.50533402,98.84,98.791,0.5]
[1770142708563,28.12,98.852,98.759,5.36086188]
[1770142708564,28.12,98.852,98.81,7.50533402]
[1770142708775,4.27527085,98.817,98.742,0.5]
[1770142708947,4.27527085,98.817,98.75,7.50533402]
[1770142709273,63.62965544,98.816,98.77,7.50533402]
[1770142709454,91.74965544,98.816,98.77,7.50533402]
[1770142709663,7.50533402,98.81,98.76,7.50533402]
[1770142709868,7.50533402,98.8,98.76,7.50533402]
[1770142710172,63.62965544,98.799,98.742,0.5]
[1770142710365,63.62965544,98.799,98.77,7.50533402]
[1770142710543,63.62965544,98.799,98.76,7.50533402]
[1770142711251,63.62965544,98.799,98.77,7.50533402]
[1770142711647,63.62965544,98.799,98.78,7.50533402]
[1770142711875,63.62965544,98.799,98.771,0.5]
[1770142712062,63.62965544,98.799,98.78,7.50533402]
[1770142712753,63.62965544,98.799,98.665,50.79227562]
[1770142712946,7.50533402,98.73,98.681,0.5]
[1770142713146,28.12,98.732,98.681,0.5]
[1770142713452,65.06600225,98.731,98.681,0.5]
[1770142713654,7.50533402,98.73,98.681,0.5]
[1770142713959,72.57133627,98.73,98.681,0.5]
[1770142714266,89.59340225,98.729,98.68,7.60533402]
[1770142714465,61.47340225,98.728,98.69,7.50533402]
[1770142714668,59.29930699,98.728,98.682,0.5]
[1770142714852,59.29930699,98.728,98.72,7.50533402]
[1770142715057,59.29930699,98.728,98.71,7.50533402]
[1770142715253,59.29930699,98.728,98.7,0.5]
[1770142715464,59.29930699,98.728,98.71,7.50533402]
[1770142716860,59.29930699,98.728,98.72,7.50533402]
[1770142717056,0.48294077,98.765,98.72,7.50533402]
[1770142717258,0.48294077,98.765,98.75,7.50533402]
[1770142717473,0.5,98.786,98.76,7.50533402]
[1770142717967,0.5,98.786,98.75,7.50533402]
[1770142718474,0.5,98.786,98.76,7.50533402]
[1770142718670,0.5,98.786,98.77,7.50533402]
[1770142718968,0.5,98.786,98.76,7.50533402]
[1770142719668,0.5,98.786,98.75,7.50533402]
[1770142719853,0.5,98.786,98.77,7.50533402]
[1770142720245,0.5,98.786,98.76,7.50533402]
[1770142720872,0.5,98.786,98.72,7.50533402]
[1770142720873,0.5,98.786,98.75,7.50533402]
[1770142721451,0.5,98.815,98.78,7.50533402]
[1770142721647,0.5,98.815,98.79,7.50533402]
[1770142722465,6.34335449,98.822,98.8,7.50533402]
[1770142722675,6.34335449,98.822,98.81,7.50533402]
[1770142722973,6.34335449,98.822,98.8,7.50533402]
[1770142723156,0.5,98.821,98.79,7.50533402]
[1770142723356,0.5,98.821,98.749,10.12666262]
[1770142723556,0.5,98.821,98.79,7.50533402]
[1770142724563,0.5,98.819,98.77,7.50533402]
[1770142725361,0.5,98.819,98.732,4.27527085]
[1770142725570,0.5,98.819,98.724,25.32288093]
[1770142725571,0.5,98.809,98.76,7.50533402]
[1770142726369,6.34335449,98.822,98.79,7.50533402]
[1770142726370,0.5,98.821,98.79,7.50533402]
[1770142726573,0.5,98.821,98.78,7.50533402]
[1770142726879,0.5,98.821,98.729,4.27527085]
[1770142726880,0.5,98.821,98.79,7.50533402]
[1770142727779,0.5,98.821,98.78,7.50533402]
[1770142727964,0.5,98.819,98.735,10.12804442]
[1770142728164,6.34335449,98.822,98.718,5.36086188]
[1770142728165,0.5,98.809,98.76,7.50533402]
[1770142728679,0.5,98.809,98.696,50.78064455]
[1770142728680,0.5,98.769,98.627,50.63304465]
[1770142728975,0.5,98.769,98.73,7.50533402]
[1770142729376,0.5,98.769,98.676,5.36086188]
[1770142729377,0.5,98.789,98.75,7.50533402]
[1770142731979,0.5,98.789,98.76,7.50533402]
[1770142732356,0.5,98.789,98.703,25.32837359]
[1770142732564,0.5,98.789,98.698,5.36086188]
[1770142732786,0.5,98.789,98.75,7.50533402]
[1770142734787,0.5,98.789,98.68,50.27945852]
[1770142734788,4.27527085,98.757,98.68,0.1]
[1770142735086,0.5,98.729,98.69,7.50533402]
[1770142735273,0.5,98.729,98.68,0.1]
[1770142735471,0.5,98.729,98.68,7.60533402]
[1770142736564,0.5,98.729,98.68,0.1]
[1770142736767,0.5,98.729,98.68,7.60533402]
[1770142737169,0.5,98.729,98.68,0.1]
[1770142737369,0.5,98.729,98.68,7.60533402]
[1770142737685,0.5,98.729,98.69,7.50533402]
[1770142738066,0.5,98.729,98.68,7.60533402]
[1770142738263,0.5,98.729,98.69,7.50533402]
[1770142739093,0.5,98.765,98.72,7.50533402]
[1770142739475,0.5,98.729,98.68,0.1]
[1770142739676,0.5,98.729,98.68,7.60533402]
[1770142739884,0.5,98.729,98.68,0.1]
[1770142740184,0.5,98.729,98.68,7.60533402]
[1770142740391,7.50533402,98.72,98.68,0.1]
[1770142740589,0.5,98.719,98.68,0.1]
[1770142741385,0.5,98.719,98.68,7.60533402]
[1770142741586,0.5,98.74,98.69,7.50533402]
[1770142741888,0.5,98.74,98.7,7.50533402]
[1770142742071,0.5,98.739,98.69,7.50533402]
[1770142742384,0.5,98.739,98.68,7.60533402]
[1770142742687,0.5,98.739,98.69,7.50533402]
[1770142742889,0.5,98.739,98.7,7.50533402]
[1770142743473,0.5,98.739,98.71,7.50533402]
[1770142743989,6.34331744,98.747,98.72,7.50533402]
[1770142744184,6.34331744,98.747,98.71,7.50533402]
[1770142744386,6.34331744,98.747,98.72,7.50533402]
[1770142744975,6.34331744,98.747,98.68,0.1]
[1770142744976,10.12699248,98.746,98.612,0.5]
[1770142745193,7.50533402,98.68,98.612,0.5]
[1770142745397,5.36086188,98.719,98.641,0.5]
[1770142745398,7.50533402,98.7,98.641,0.5]
[1770142745588,4.27527085,98.74,98.671,0.5]
[1770142745778,4.27527085,98.739,98.681,0.5]
[1770142746281,7.50533402,98.73,98.681,0.5]
[1770142746484,4.27527085,98.739,98.681,0.5]
[1770142746673,4.27527085,98.739,98.691,0.5]
[1770142747073,4.27527085,98.739,98.64,7.50533402]
[1770142747074,7.50533402,98.73,98.679,0.5]
[1770142747376,7.50533402,98.73,98.64,17.64319262]
[1770142747377,6.3345588,98.742,98.701,0.5]
[1770142747888,6.3345588,98.742,98.721,0.5]
[1770142750294,6.3345588,98.742,98.693,10.13242722]
[1770142750295,6.3345588,98.742,98.73,8.00533402]
[1770142750478,6.3345588,98.742,98.665,5.36086188]
[1770142750479,10.12750529,98.741,98.665,5.36086188]
[1770142750674,10.12750529,98.741,98.599,0.5]
[1770142750675,4.27527085,98.708,98.651,0.5]
[1770142750874,4.27527085,98.717,98.651,0.5]
[1770142751080,7.50533402,98.69,98.651,0.5]
[1770142751384,7.50533402,98.69,98.582,50.01614819]
[1770142751385,4.27527085,98.708,98.638,0.5]
[1770142751587,7.50533402,98.66,98.638,0.5]
[1770142751892,7.50533402,98.66,98.6,7.60533402]
[1770142751893,7.50533402,98.67,98.611,0.5]
[1770142752396,28.16,98.685,98.611,0.5]
[1770142752573,12.33813787,98.66,98.611,0.5]
[1770142752973,32.43527085,98.688,98.611,0.5]
[1770142753176,32.43527085,98.688,98.61,12.43813787]
[1770142753177,28.16,98.688,98.631,0.5]
[1770142753395,12.33813787,98.69,98.631,0.5]
[1770142753588,4.27527085,98.708,98.631,0.5]
[1770142753589,12.33813787,98.68,98.631,0.5]
[1770142753773,12.33813787,98.67,98.631,0.5]
[1770142753976,12.33813787,98.66,98.631,0.5]
[1770142754199,25.3248481,98.718,98.61,0.1]
[1770142754378,4.27527085,98.679,98.611,0.5]
[1770142754704,12.33813787,98.66,98.611,0.5]
[1770142755202,4.27527085,98.674,98.611,0.5]
[1770142755391,6.3418978,98.677,98.631,0.5]
[1770142755699,6.3418978,98.677,98.641,0.5]
[1770142755902,10.13417649,98.676,98.61,0.1]
[1770142756094,10.13417649,98.676,98.521,10.1500199]
[1770142756095,3.751,98.572,98.506,50.23748574]
[1770142756397,3.751,98.572,98.526,10.1495918]
[1770142756577,3.751,98.572,98.56,12.33813787]
[1770142756776,0.5,98.604,98.56,12.33813787]
[1770142756980,0.5,98.604,98.532,10.14896516]
[1770142757179,0.5,98.604,98.492,0.3105014]
[1770142757601,0.5,98.599,98.55,12.33813787]
[1770142757804,0.5,98.599,98.54,12.33813787]
[1770142758590,0.5,98.599,98.492,0.3105014]
[1770142758591,0.5,98.599,98.513,4.27527085]
[1770142758985,0.5,98.599,98.54,12.33813787]
[1770142759190,0.5,98.589,98.54,12.33813787]
[1770142759503,30.69863056,98.667,98.492,0.3105014]
[1770142759504,4.27527085,98.587,98.492,0.3105014]
[1770142759802,12.33813787,98.55,98.5,12.33813787]
[1770142759992,28.16,98.586,98.492,0.3105014]
[1770142759993,4.27527085,98.578,98.492,0.3105014]
[1770142760298,28.16,98.586,98.51,12.33813787]
[1770142760499,0.5,98.579,98.492,0.3105014]
[1770142760807,0.5,98.569,98.51,12.33813787]
[1770142761000,0.5,98.569,98.52,12.33813787]
[1770142761205,0.5,98.569,98.51,12.33813787]
[1770142761804,0.5,98.569,98.52,12.33813787]
[1770142762004,0.5,98.569,98.53,12.33813787]
[1770142762305,0.5,98.569,98.492,0.3105014]
[1770142762306,0.5,98.569,98.52,12.33813787]
[1770142762504,0.5,98.569,98.51,12.33813787]
[1770142762815,0.47969567,98.567,98.456,0.48268662]
[1770142763119,10.46551027,98.609,98.421,5.25759302]
[1770142763120,0.47969567,98.54,98.481,0.48268662]
[1770142763314,0.47969567,98.54,98.48,12.33813787]
[1770142763315,0.47969567,98.54,98.5,12.33813787]
[1770142763490,0.47969567,98.54,98.491,0.48268662]
[1770142763804,0.47969567,98.539,98.48,12.33813787]
[1770142764004,0.47969567,98.529,98.472,0.48268662]
[1770142764306,0.47969567,98.549,98.487,0.48268662]
[1770142764488,0.47969567,98.539,98.48,12.33813787]
[1770142764691,0.47969567,98.539,98.481,0.48268662]
[1770142765514,0.47969567,98.539,98.416,50.66703054]
[1770142765515,0.47969567,98.519,98.461,0.48268662]
[1770142766392,0.47969567,98.509,98.45,12.33813787]
[1770142766703,0.47969567,98.509,98.447,0.48268662]
[1770142766911,0.47969567,98.509,98.47,12.33813787]
[1770142767101,0.47969567,98.529,98.47,12.33813787]
[1770142767605,0.47969567,98.519,98.467,0.48268662]
[1770142768108,0.47969567,98.519,98.48,12.33813787]
[1770142768408,28.18,98.563,98.421,5.36086188]
[1770142768409,0.47969567,98.489,98.421,5.36086188]
[1770142768592,0.47969567,98.489,98.4,12.39515977]
[1770142768593,2.031,98.432,98.397,0.3105014]
[1770142768810,0.47969567,98.493,98.45,12.39515977]
[1770142769113,0.47969567,98.493,98.44,12.39515977]
[1770142769307,0.47969567,98.493,98.431,0.3105014]
[1770142769308,0.47969567,98.489,98.431,0.3105014]
[1770142769516,0.47969567,98.489,98.417,0.3105014]
[1770142769717,0.47969567,98.489,98.43,12.39515977]
[1770142770097,0.47969567,98.489,98.45,12.39515977]
[1770142770290,0.47969567,98.519,98.431,0.3105014]
[1770142770493,0.47969567,98.499,98.46,12.39515977]
[1770142771096,0.47969567,98.499,98.444,0.3105014]
[1770142771097,0.47969567,98.529,98.48,12.39515977]
[1770142771315,0.47969567,98.529,98.47,12.39515977]
[1770142771507,0.47969567,98.529,98.464,0.3105014]
[1770142771695,0.47969567,98.529,98.448,10.1575931]
[1770142771696,0.47969567,98.509,98.45,12.39515977]
[1770142772311,0.47969567,98.499,98.46,12.39515977]
[1770142772526,0.47969567,98.499,98.45,7.55780004]
[1770142772694,0.47969567,98.499,98.444,0.3105014]
[1770142772894,0.47969567,98.499,98.418,4.27527085]
[1770142773096,0.47969567,98.479,98.421,0.3105014]
[1770142773305,0.47969567,98.479,98.43,7.55780004]
[1770142773604,0.47969567,98.469,98.394,0.3105014]
[1770142773801,0.47969567,98.459,98.41,7.55780004]
[1770142775317,0.47969567,98.479,98.43,7.55780004]
[1770142775628,0.47969567,98.479,98.384,0.3105014]
[1770142775804,0.47969567,98.479,98.42,7.55780004]
[1770142775995,0.47969567,98.479,98.41,0.3105014]
[1770142776206,0.47969567,98.479,98.42,7.55780004]
[1770142776406,0.47969567,98.479,98.43,7.55780004]
[1770142776711,7.55780004,98.48,98.38,6.3456555]
[1770142776712,0.47969567,98.439,98.381,0.3105014]
[1770142777114,0.47969567,98.439,98.39,7.55780004]
[1770142777500,0.47969567,98.439,98.38,13.90345554]
[1770142777713,0.47969567,98.439,98.38,6.3456555]
[1770142777908,7.55780004,98.44,98.38,6.3456555]
[1770142777909,0.47969567,98.429,98.38,5.8456555]
[1770142778221,4.27527085,98.47,98.38,5.8456555]
[1770142778222,0.47969567,98.419,98.38,5.8456555]
[1770142779012,0.47969567,98.419,98.38,7.55780004]
[1770142779220,0.47969567,98.419,98.367,2.47215037]
[1770142779221,0.47969567,98.449,98.373,0.3105014]
[1770142779426,0.47969567,98.449,98.39,7.55780004]
[1770142779619,0.47969567,98.449,98.386,0.3105014]
[1770142779821,0.47969567,98.449,98.39,7.55780004]
[1770142780046,0.47969567,98.399,98.367,2.47215037]
[1770142780321,0.47969567,98.429,98.371,0.3105014]
[1770142780502,0.37528338,98.429,98.39,7.55780004]
[1770142780702,7.55780004,98.44,98.39,7.55780004]
[1770142780902,4.27527085,98.46,98.385,0.41491369]
[1770142780903,7.55780004,98.43,98.385,0.41491369]
[1770142781103,7.55780004,98.43,98.38,7.55780004]
[1770142781520,7.55780004,98.44,98.38,7.55780004]
[1770142781721,4.27527085,98.477,98.38,7.55780004]
[1770142782023,7.55780004,98.43,98.38,7.55780004]
[1770142782224,28.22,98.485,98.367,2.47215037]
[1770142782225,7.55780004,98.45,98.367,2.47215037]
[1770142782414,28.22,98.485,98.41,7.55780004]
[1770142782415,0.47969567,98.484,98.41,7.55780004]
[1770142782610,0.47969567,98.459,98.41,7.55780004]
[1770142782809,0.47969567,98.459,98.367,12.63808816]
[1770142782810,0.47969567,98.459,98.367,2.47215037]
[1770142783011,0.47969567,98.479,98.43,7.55780004]
[1770142783215,0.47969567,98.479,98.421,0.41491369]
[1770142783419,7.55780004,98.47,98.421,0.41491369]
[1770142783607,0.47969567,98.479,98.421,0.41491369]
[1770142783808,0.47969567,98.479,98.43,7.55780004]
[1770142784130,0.47969567,98.479,98.421,0.41491369]
[1770142784708,7.55780004,98.47,98.421,0.41491369]
[1770142784903,7.55780004,98.47,98.367,6.74742122]
[1770142784904,0.47969567,98.499,98.434,0.41491369]
[1770142785109,8.03749571,98.49,98.44,7.55780004]
[1770142785524,0.47969567,98.489,98.44,7.55780004]
[1770142786026,7.55780004,98.47,98.421,0.41491369]
[1770142786225,0.47969567,98.476,98.43,7.55780004]
[1770142786425,0.47969567,98.476,98.44,7.55780004]
[1770142786627,0.47969567,98.492,98.45,7.55780004]
[1770142786926,0.47969567,98.51,98.47,7.55780004]
[1770142787307,8.14229656,98.62,98.49,7.55780004]
[1770142787509,7.55780004,98.54,98.49,7.55780004]
[1770142787708,7.55780004,98.53,98.471,0.41491369]
[1770142787927,0.47969567,98.529,98.481,0.41491369]
[1770142788137,0.47969567,98.519,98.464,0.41491369]
[1770142788311,0.47969567,98.499,98.45,7.55780004]
[1770142788513,0.47969567,98.499,98.446,0.41491369]
[1770142788826,0.47969567,98.499,98.451,0.41491369]
[1770142789211,0.47969567,98.499,98.44,7.55780004]
[1770142789212,0.47969567,98.499,98.441,0.41491369]
[1770142789519,0.47969567,98.499,98.45,7.55780004]
[1770142789824,7.55780004,98.49,98.441,0.41491369]
[1770142790025,0.47969567,98.499,98.441,0.41491369]
[1770142790026,0.47969567,98.499,98.45,7.55780004]
[1770142790434,0.49809798,98.549,98.491,0.41491369]
[1770142790610,0.49809798,98.549,98.5,7.55780004]
[1770142790932,25.35195374,98.612,98.451,10.15733715]
[1770142790933,0.49809798,98.589,98.54,7.55780004]
[1770142791115,0.49809798,98.589,98.55,7.55780004]
[1770142791435,0.49809798,98.589,98.57,7.55780004]
[1770142791613,0.49809798,98.604,98.543,0.41491369]
[1770142791809,0.49809798,98.604,98.56,7.55780004]
[1770142792010,0.49809798,98.599,98.543,0.41491369]
[1770142792214,7.55780004,98.61,98.57,7.55780004]
[1770142792411,7.55780004,98.61,98.48,7.55780004]
[1770142792412,0.49809798,98.609,98.56,7.55780004]
[1770142792622,6.3527365,98.618,98.48,7.55780004]
[1770142792623,0.49809798,98.599,98.55,7.55780004]
[1770142793026,0.49809798,98.599,98.56,7.55780004]
[1770142793227,0.49809798,98.599,98.55,7.55780004]
[1770142793433,0.49809798,98.613,98.556,0.41491369]
[1770142793728,6.3527365,98.618,98.58,7.55780004]
[1770142793938,6.3527365,98.618,98.504,5.36086188]
[1770142793939,6.3527365,98.618,98.57,0.41491369]
[1770142794118,6.3527365,98.618,98.6,7.55780004]
[1770142795132,6.3527365,98.618,98.59,0.41491369]
[1770142795315,6.3527365,98.618,98.6,7.55780004]
[1770142796032,6.3527365,98.618,98.59,7.55780004]
[1770142796415,6.3527365,98.618,98.6,7.55780004]
[1770142796623,6.3527365,98.618,98.58,0.41491369]